fUSD/lending_fUSD_20250906
["ID","MTS","AMOUNT","RATE_DAILY","PERIOD"]
[383886645,1757155847330,-400.0,0.00049315,120]
[383886646,1757155847339,-400.0,0.00049315,120]
[383886647,1757155847349,-400.0,0.00049315,120]
[383886648,1757155847359,-400.0,0.00049315,120]
[383886649,1757155847368,-400.0,0.00049315,120]
[383886650,1757155847378,-400.0,0.00049315,120]
[383886651,1757155847387,-400.0,0.00049315,120]
[383886652,1757155847397,-400.0,0.00049315,120]
[383886653,1757155847406,-400.0,0.00049315,120]
[383886654,1757155847415,-400.0,0.00049315,120]
[383886655,1757155847425,-400.0,0.00049315,120]
[383886656,1757155847434,-400.0,0.00049315,120]
[383886657,1757155847443,-401.89194396,0.00049315,120]
[383886658,1757155847453,-400.0,0.00049315,120]
[383886659,1757155847463,-400.0,0.00049315,120]
[383886660,1757155847472,-400.0,0.00049315,120]
[383886661,1757155847481,-400.0,0.00049315,120]
[383886662,1757155847491,-400.0,0.00049315,120]
[383886663,1757155847500,-400.0,0.00049315,120]
[383886664,1757155847511,-400.0,0.00049315,120]
[383886665,1757155847520,-400.0,0.00049315,120]
[383886666,1757155847529,-400.0,0.00049315,120]
[383886667,1757155847539,-400.0,0.00049315,120]
[383886668,1757155847549,-400.0,0.00049315,120]
[383886669,1757155847559,-400.0,0.00049315,120]
[383886670,1757155847568,-400.0,0.00049315,120]
[383886671,1757155847578,-400.0,0.00049315,120]
[383886672,1757155847588,-400.0,0.00049315,120]
[383886673,1757155847597,-404.9183619,0.00049315,120]
[383886674,1757155847607,-400.0,0.00049315,120]
[383886675,1757155847617,-400.0,0.00049315,120]
[383886676,1757155847626,-400.0,0.00049315,120]
[383886677,1757155847635,-400.0,0.00049315,120]
[383886678,1757155847645,-400.0,0.00049315,120]
[383886679,1757155847655,-400.0,0.00049315,120]
[383886680,1757155847664,-495.50560847,0.00049315,120]
[383886681,1757155847675,-400.0,0.00049315,120]
[383886682,1757155847684,-400.0,0.00049315,120]
[383886683,1757155847694,-400.0,0.00049315,120]
[383886684,1757155847708,-400.0,0.00049315,120]
[383886685,1757155847718,-400.0,0.00049315,120]
[383886686,1757155847728,-371.50667135,0.00049315,120]
[383886687,1757155847740,-400.0,0.00049315,120]
[383886688,1757155847750,-400.0,0.00049315,120]
[383886689,1757155847761,-400.0,0.00049315,120]
[383886690,1757155847772,-400.0,0.00049315,120]
[383886691,1757155847782,-400.0,0.00049315,60]
[383886692,1757155847793,-400.0,0.00049315,120]
[383886693,1757155847803,-400.0,0.00049315,120]
[383886694,1757155847814,-400.0,0.00049315,120]
[383886695,1757155847825,-400.0,0.00049315,120]
[383886696,1757155847835,-400.0,0.00049315,120]
[383886697,1757155847845,-400.0,0.00049315,120]
[383886698,1757155847855,-400.0,0.00049315,120]
[383886699,1757155847865,-400.0,0.00049315,120]
[383886700,1757155847876,-400.0,0.00049315,120]
[383886701,1757155847887,-400.0,0.00049315,120]
[383886702,1757155847897,-400.0,0.00049315,120]
[383886703,1757155847909,-400.0,0.00049315,120]
[383886704,1757155847919,-400.0,0.00049315,120]
[383886705,1757155847930,-400.0,0.00049315,120]
[383886706,1757155847940,-400.0,0.00049315,120]
[383886707,1757155847950,-400.0,0.00049315,120]
[383886708,1757155847960,-400.0,0.00049315,120]
[383886709,1757155847971,-400.0,0.00049315,120]
[383886710,1757155847981,-430.6487723,0.00049315,120]
[383886711,1757155847992,-400.0,0.00049315,120]
[383886712,1757155848002,-400.0,0.00049315,120]
[383886713,1757155848013,-400.0,0.00049315,120]
[383886714,1757155848024,-385.53096551,0.00049315,2]
[383886715,1757155848035,-400.0,0.00049315,120]
[383886716,1757155848045,-400.0,0.00049315,120]
[383886717,1757155848056,-400.0,0.00049315,120]
[383886718,1757155848067,-400.0,0.00049315,120]
[383886719,1757155848078,-400.0,0.00049315,120]
[383886720,1757155848090,-400.0,0.00049315,120]
[383886721,1757155848100,-400.0,0.00049315,120]
[383886722,1757155848111,-400.0,0.00049315,120]
[383886723,1757155848121,-400.0,0.00049315,120]
[383886724,1757155848133,-496.59,0.00049315,120]
[383886725,1757155848144,-538.18,0.00049315,120]
[383886726,1757155848154,-400.0,0.00049315,120]
[383886727,1757155848165,-400.0,0.00049315,120]
[383886728,1757155848176,-400.0,0.00049315,120]
[383886729,1757155848186,-400.0,0.00049315,120]
[383886730,1757155848196,-400.0,0.00049315,120]
[383886731,1757155848208,-210.47147096,0.00049315,7]
[383886732,1757155848218,-400.0,0.00049315,120]
[383886733,1757155848228,-400.0,0.00049315,120]
[383886734,1757155848239,-400.0,0.00049315,120]
[383886735,1757155848249,-400.0,0.00049315,120]
[383886736,1757155848260,-400.0,0.00049315,120]
[383886737,1757155848270,-400.0,0.00049315,120]
[383886738,1757155848281,-500.0,0.00049315,120]
[383886739,1757155848291,-500.0,0.00049315,120]
[383886740,1757155848301,-400.0,0.00049315,120]
[383886741,1757155848314,-500.0,0.00049315,120]
[383886742,1757155848323,-500.0,0.00049315,120]
[383886743,1757155848333,-403.94666167,0.00049315,120]
[383886744,1757155848344,-500.0,0.00049315,120]
[383886745,1757155848355,-500.0,0.00049315,120]
[383886746,1757155848365,-500.0,0.00049315,120]
[383886747,1757155848376,-500.0,0.00049315,120]
[383886748,1757155848386,-537.08987,0.00049315,120]
[383886749,1757155848397,-400.0,0.00049315,120]
[383886750,1757155848407,-400.0,0.00049315,120]
[383886751,1757155848417,-400.0,0.00049315,120]
[383886752,1757155848427,-400.0,0.00049315,120]
[383886753,1757155848437,-400.0,0.00049315,120]
[383886754,1757155848648,-403.24224863,0.00049315,120]
[383886755,1757155848694,-400.0,0.00049315,120]
[383886756,1757155848705,-500.0,0.00049315,120]
[383886757,1757155848715,-400.0,0.00049315,120]
[383886758,1757155848726,-500.0,0.00049315,120]
[383886759,1757155848736,-500.0,0.00049315,120]
[383886760,1757155848746,-500.0,0.00049315,120]
[383886761,1757155848757,-400.0,0.00049315,120]
[383886762,1757155848767,-400.0,0.00049315,120]
[383886763,1757155848777,-400.0,0.00049315,120]
[383886764,1757155848788,-400.0,0.00049315,120]
[383886765,1757155848798,-400.0,0.00049315,120]
[383886766,1757155848809,-400.0,0.00049315,120]
[383886767,1757155848819,-400.0,0.00049315,120]
[383886768,1757155848830,-400.0,0.00049315,120]
[383886769,1757155848839,-400.0,0.00049315,120]
[383886770,1757155848849,-426.38,0.00049315,120]
[383886771,1757155848859,-400.0,0.00049315,120]
[383886772,1757155848869,-400.0,0.00049315,120]
[383886773,1757155848879,-406.48,0.00049315,120]
[383886774,1757155848889,-400.0,0.00049315,120]
[383886775,1757155848898,-400.0,0.00049315,120]
[383886776,1757155848908,-400.0,0.00049315,120]
[383886777,1757155848918,-400.0,0.00049315,120]
[383886778,1757155848928,-400.0,0.00049315,120]
[383886779,1757155848938,-401.81626062,0.00049315,120]
[383886780,1757155848948,-656.06,0.00049315,120]
[383886781,1757155848957,-400.0,0.00049315,120]
[383886782,1757155848967,-400.0,0.00049315,120]
[383886783,1757155848977,-400.0,0.00049315,120]
[383886784,1757155848987,-400.0,0.00049315,120]
[383886785,1757155848997,-400.0,0.00049315,120]
[383886786,1757155849007,-590.88,0.00049315,120]
[383886787,1757155849017,-400.0,0.00049315,120]
[383886788,1757155849027,-400.0,0.00049315,120]
[383886789,1757155849037,-400.0,0.00049315,120]
[383886790,1757155849047,-499.47,0.00049315,120]
[383886791,1757155849056,-400.0,0.00049315,120]
[383886792,1757155849067,-400.0,0.00049315,120]
[383886793,1757155849077,-400.0,0.00049315,120]
[383886794,1757155849087,-500.0,0.00049315,120]
[383886795,1757155849097,-500.0,0.00049315,120]
[383886796,1757155849107,-405.22075419,0.00049315,120]
[383886797,1757155849117,-400.0,0.00049315,120]
[383886798,1757155849126,-400.0,0.00049315,120]
[383886799,1757155849136,-400.0,0.00049315,120]
[383886800,1757155849146,-402.4469949,0.00049315,120]
[383886801,1757155849156,-400.0,0.00049315,120]
[383886802,1757155849166,-400.0,0.00049315,120]
[383886803,1757155849176,-400.0,0.00049315,120]
[383886804,1757155849186,-400.0,0.00049315,120]
[383886805,1757155849196,-400.0,0.00049315,120]
[383886806,1757155849207,-400.0,0.00049315,120]
[383886807,1757155849216,-400.0,0.00049315,120]
[383886808,1757155849226,-400.0,0.00049315,120]
[383886809,1757155849236,-400.0,0.00049315,120]
[383886810,1757155849245,-400.0,0.00049315,120]
[383886811,1757155849255,-400.0,0.00049315,120]
[383886812,1757155849265,-400.0,0.00049315,120]
[383886813,1757155849275,-400.0,0.00049315,120]
[383886814,1757155849285,-400.0,0.00049315,120]
[383886815,1757155849295,-400.0,0.00049315,120]
[383886816,1757155849304,-401.6581156,0.00049315,120]
[383886817,1757155849318,-437.08205569,0.00049315,120]
[383886818,1757155849327,-400.0,0.00049315,120]
[383886819,1757155849336,-400.0,0.00049315,120]
[383886820,1757155849346,-400.0,0.00049315,120]
[383886821,1757155849356,-400.0,0.00049315,120]
[383886822,1757155849366,-400.0,0.00049315,120]
[383886823,1757155849375,-400.0,0.00049315,120]
[383886824,1757155849384,-400.0,0.00049315,120]
[383886825,1757155849394,-400.0,0.00049315,120]
[383886826,1757155849404,-400.0,0.00049315,120]
[383886827,1757155849414,-450.83,0.00049315,120]
[383886828,1757155849424,-400.0,0.00049315,120]
[383886829,1757155849433,-400.0,0.00049315,120]
[383886830,1757155849443,-400.0,0.00049315,120]
[383886831,1757155849453,-400.0,0.00049315,120]
[383886832,1757155849463,-400.0,0.00049315,120]
[383886833,1757155849473,-400.0,0.00049315,120]
[383886834,1757155849482,-400.0,0.00049315,120]
[383886835,1757155849492,-400.0,0.00049315,120]
[383886836,1757155849501,-400.0,0.00049315,120]
[383886837,1757155849511,-500.0,0.00049315,120]
[383886838,1757155849520,-500.0,0.00049315,120]
[383886839,1757155849529,-400.0,0.00049315,120]
[383886840,1757155849539,-500.0,0.00049315,120]
[383886841,1757155849547,-500.0,0.00049315,120]
[383886842,1757155849557,-500.0,0.00049315,120]
[383886843,1757155849567,-500.0,0.00049315,120]
[383886844,1757155849577,-500.0,0.00049315,120]
[383886845,1757155849587,-500.0,0.00049315,120]
[383886846,1757155849596,-500.0,0.00049315,120]
[383886847,1757155849606,-400.0,0.00049315,120]
[383886848,1757155849616,-400.0,0.00049315,120]
[383886849,1757155849626,-400.0,0.00049315,120]
[383886850,1757155849636,-400.0,0.00049315,120]
[383886851,1757155849647,-400.0,0.00049315,120]
[383886852,1757155849656,-400.0,0.00049315,120]
[383886853,1757155849666,-400.0,0.00049315,120]
[383886854,1757155849676,-400.0,0.00049315,120]
[383886855,1757155849685,-400.0,0.00049315,120]
[383886856,1757155849695,-400.0,0.00049315,120]
[383886857,1757155849704,-400.0,0.00049315,120]
[383886858,1757155849714,-400.0,0.00049315,120]
[383886859,1757155849724,-400.0,0.00049315,120]
[383886860,1757155849734,-400.0,0.00049315,120]
[383886861,1757155849744,-400.0,0.00049315,120]
[383886862,1757155849754,-400.0,0.00049315,120]
[383886863,1757155849764,-400.0,0.00049315,120]
[383886864,1757155849774,-400.0,0.00049315,120]
[383886865,1757155849784,-400.0,0.00049315,120]
[383886866,1757155849795,-441.76,0.00049315,120]
[383886867,1757155849805,-519.76,0.00049315,120]
[383886868,1757155849815,-400.0,0.00049315,120]
[383886869,1757155849824,-400.0,0.00049315,120]
[383886870,1757155849834,-628.19,0.00049315,120]
[383886871,1757155849843,-400.0,0.00049315,120]
[383886872,1757155849853,-400.0,0.00049315,120]
[383886873,1757155849863,-400.0,0.00049315,120]
[383886874,1757155849873,-400.0,0.00049315,120]
[383886875,1757155849882,-400.0,0.00049315,120]
[383886876,1757155849892,-400.0,0.00049315,120]
[383886877,1757155849902,-400.0,0.00049315,120]
[383886878,1757155849911,-400.0,0.00049315,120]
[383886879,1757155849921,-400.0,0.00049315,120]
[383886880,1757155849931,-400.0,0.00049315,120]
[383886881,1757155849940,-400.0,0.00049315,120]
[383886882,1757155849950,-400.0,0.00049315,120]
[383886883,1757155849959,-400.0,0.00049315,120]
[383886884,1757155849969,-400.0,0.00049315,120]
[383886885,1757155849979,-400.0,0.00049315,120]
[383886886,1757155849989,-400.0,0.00049315,120]
[383886887,1757155849999,-400.0,0.00049315,120]
[383886888,1757155850009,-400.0,0.00049315,120]
[383886889,1757155850019,-400.0,0.00049315,120]
[383886890,1757155850029,-249.53342731,0.00049315,120]
[383886891,1757155850038,-400.0,0.00049315,120]
[383886892,1757155850048,-400.0,0.00049315,120]
[383886893,1757155850058,-433.6,0.00049315,120]
[383886894,1757155850067,-400.0,0.00049315,120]
[383886895,1757155850077,-400.0,0.00049315,120]
[383886896,1757155850087,-400.0,0.00049315,120]
[383886897,1757155850096,-400.0,0.00049315,120]
[383886898,1757155850105,-400.0,0.00049315,120]
[383886899,1757155850115,-400.0,0.00049315,120]
[383886900,1757155850124,-400.0,0.00049315,120]
[383886901,1757155850134,-400.0,0.00049315,120]
[383886902,1757155850143,-400.0,0.00049315,120]
[383886903,1757155850152,-400.0,0.00049315,120]
[383886904,1757155850162,-400.0,0.00049315,120]
[383886905,1757155850172,-400.0,0.00049315,120]
[383886906,1757155850182,-490.39,0.00049315,120]
[383886907,1757155850192,-400.0,0.00049315,120]
[383886908,1757155850202,-402.843592,0.00049315,120]
[383886909,1757155850212,-400.0,0.00049315,120]
[383886910,1757155850222,-400.0,0.00049315,120]
[383886911,1757155850232,-420.80322692,0.00049315,120]
[383886912,1757155850242,-400.0,0.00049315,120]
[383886913,1757155850251,-400.0,0.00049315,120]
[383886914,1757155850261,-400.0,0.00049315,120]
[383886915,1757155850271,-400.0,0.00049315,120]
[383886916,1757155850281,-400.0,0.00049315,120]
[383886917,1757155850291,-464.95042614,0.00049315,120]
[383886918,1757155850301,-400.0,0.00049315,120]
[383886919,1757155850311,-403.37193029,0.00049315,12]
[383886920,1757155850322,-400.0,0.00049315,120]
[383886921,1757155850331,-402.59038168,0.00049315,120]
[383886922,1757155850341,-400.0,0.00049315,120]
[383886923,1757155850351,-400.0,0.00049315,120]
[383886924,1757155850361,-400.0,0.00049315,120]
[383886925,1757155850371,-541.21,0.00049315,120]
[383886926,1757155850381,-400.0,0.00049315,120]
[383886927,1757155850390,-400.0,0.00049315,120]
[383886928,1757155850400,-400.0,0.00049315,120]
[383886929,1757155850409,-400.0,0.00049315,120]
[383886930,1757155850419,-400.0,0.00049315,120]
[383886931,1757155850429,-398.68379544,0.00049315,120]
[383886932,1757155850438,-400.0,0.00049315,120]
[383886933,1757155850448,-402.25775921,0.00049315,120]
[383886934,1757155850457,-400.0,0.00049315,120]
[383886935,1757155850467,-400.0,0.00049315,120]
[383886936,1757155850477,-400.0,0.00049315,120]
[383886937,1757155850487,-401.47560582,0.00049315,120]
[383886938,1757155850497,-400.0,0.00049315,120]
[383886939,1757155850506,-400.0,0.00049315,120]
[383886940,1757155850516,-400.0,0.00049315,120]
[383886941,1757155850526,-400.0,0.00049315,120]
[383886942,1757155850535,-400.0,0.00049315,120]
[383886943,1757155850545,-400.0,0.00049315,120]
[383886944,1757155850555,-402.47604802,0.00049315,120]
[383886945,1757155850564,-400.0,0.00049315,120]
[383886946,1757155850574,-400.0,0.00049315,120]
[383886947,1757155850584,-400.0,0.00049315,120]
[383886948,1757155850593,-400.0,0.00049315,120]
[383886949,1757155850602,-400.0,0.00049315,120]
[383886950,1757155850612,-400.0,0.00049315,120]
[383886951,1757155850621,-400.0,0.00049315,120]
[383886952,1757155850630,-400.0,0.00049315,120]
[383886953,1757155850639,-400.0,0.00049315,120]
[383886954,1757155850648,-400.0,0.00049315,120]
[383886955,1757155850656,-400.0,0.00049315,120]
[383886956,1757155850665,-400.0,0.00049315,120]
[383886957,1757155850674,-439.92,0.00049315,120]
[383886958,1757155850684,-400.0,0.00049315,120]
[383886959,1757155850694,-400.0,0.00049315,120]
[383886960,1757155850704,-400.0,0.00049315,120]
[383886961,1757155850714,-400.0,0.00049315,120]
[383886962,1757155850724,-404.98392533,0.00049315,120]
[383886963,1757155850734,-404.18885488,0.00049315,120]
[383886964,1757155850743,-400.0,0.00049315,120]
[383886965,1757155850753,-400.0,0.00049315,120]
[383886966,1757155850763,-400.0,0.00049315,120]
[383886967,1757155850773,-402.22104073,0.00049315,120]
[383886968,1757155850783,-400.0,0.00049315,120]
[383886969,1757155850794,-400.0,0.00049315,120]
[383886970,1757155850804,-400.0,0.00049315,120]
[383886971,1757155850814,-400.0,0.00049315,120]
[383886972,1757155850824,-598.68,0.00049315,120]
[383886973,1757155850834,-400.0,0.00049315,120]
[383886974,1757155850844,-400.0,0.00049315,120]
[383886975,1757155850854,-666.94,0.00049315,120]
[383886976,1757155850864,-400.0,0.00049315,120]
[383886977,1757155850873,-400.0,0.00049315,120]
[383886978,1757155850883,-400.0,0.00049315,120]
[383886979,1757155850893,-400.0,0.00049315,120]
[383886980,1757155850903,-400.0,0.00049315,120]
[383886981,1757155850912,-400.0,0.00049315,120]
[383886982,1757155850922,-402.0167773,0.00049315,120]
[383886983,1757155850932,-400.0,0.00049315,120]
[383886984,1757155850942,-462.92,0.00049315,90]
[383886985,1757155850952,-401.92684513,0.00049315,120]
[383886986,1757155850962,-400.0,0.00049315,30]
[383886987,1757155850972,-400.0,0.00049315,120]
[383886988,1757155850982,-400.0,0.00049315,120]
[383886989,1757155850992,-400.0,0.00049315,120]
[383886990,1757155851002,-400.0,0.00049315,120]
[383886991,1757155851011,-406.54615682,0.00049315,30]
[383886992,1757155851021,-400.0,0.00049315,120]
[383886993,1757155851030,-500.0,0.00049315,120]
[383886994,1757155851040,-509.04118898,0.00049315,120]
[383886995,1757155851049,-502.73425044,0.00049315,120]
[383886996,1757155851059,-400.0,0.00049315,120]
[383886997,1757155851069,-346.07755665,0.00049315,120]
[383886998,1757155852141,-933.0,0.000411,2]
[383886999,1757155852151,-933.0723617,0.000466,2]
[383887000,1757155852160,-53.92244335,0.00049315,120]
[383887001,1757155852169,-400.0,0.00049315,120]
[383887002,1757155852179,-400.0,0.00049315,120]
[383887003,1757155852189,-400.0,0.00049315,120]
[383887004,1757155852199,-400.0,0.00049315,120]
[383887005,1757155852208,-400.0,0.00049315,120]
[383887006,1757155852218,-400.0,0.00049315,120]
[383887007,1757155852227,-498.17531397,0.00049315,120]
[383887008,1757155852237,-400.0,0.00049315,120]
[383887009,1757155852246,-400.0,0.00049315,120]
[383887010,1757155852256,-400.0,0.00049315,120]
[383887011,1757155852265,-400.0,0.00049315,120]
[383887012,1757155852275,-400.0,0.00049315,120]
[383887013,1757155852284,-402.10406275,0.00049315,120]
[383887014,1757155852294,-500.0,0.00049315,120]
[383887015,1757155852303,-500.0,0.00049315,120]
[383887016,1757155852315,-500.0,0.00049315,120]
[383887017,1757155852324,-113.20036058,0.00049315,120]
[383887018,1757155852394,-286.79963942,0.00049315,120]
[383887019,1757155852404,-503.53325118,0.00049315,120]
[383887020,1757155852414,-400.0,0.00049315,120]
[383887021,1757155852423,-401.4629452,0.00049315,120]
[383887022,1757155852432,-35.31552968,0.00049315,120]
[383887023,1757155886280,688.8551752,0.000249,2]
[383887024,1757155886356,688.85517507,0.00027827,8]
[383887025,1757155886653,688.85517507,0.00030754,14]
[383887027,1757156287492,300.0,0.0002739,120]
[383887028,1757156287669,300.0,0.00026313,120]
[383887029,1757156287836,300.0,0.00028958,120]
[383887030,1757156291114,195.0,0.0002739,120]
[383887031,1757156291359,195.0,0.00026313,120]
[383887032,1757156291495,195.0,0.00028958,120]
[383887033,1757156343374,195.0,0.0002739,120]
[383887034,1757156343551,195.0,0.00026313,120]
[383887035,1757156343771,195.0,0.00028938,120]
[383887036,1757156347190,300.0,0.0002739,120]
[383887037,1757156347357,300.0,0.00026313,120]
[383887038,1757156351282,500.0,0.0002739,120]
[383887039,1757156351481,500.0,0.00026313,120]
[383887040,1757156351655,500.0,0.00028938,120]
[383887041,1757156353408,300.0,0.0002739,120]
[383887042,1757156353585,300.0,0.00026145,120]
[383887043,1757156353767,300.0,0.0002772,120]
[383887044,1757156354569,150.0,0.0002739,120]
[383887045,1757156409664,300.0,0.00028705,120]
[383887046,1757156409801,300.0,0.00026568,120]
[383887047,1757156409960,300.0,0.00027124,120]
[383887048,1757156410099,300.0,0.00027124,120]
[383887049,1757156410254,300.0,0.00027124,120]
[383887050,1757156413410,300.0,0.00028705,120]
[383887051,1757156413549,300.0,0.00026568,120]
[383887052,1757156413697,300.0,0.00027124,120]
[383887065,1757156817113,-233.47120716,0.0002475,2]
[383887066,1757156817135,-281.7826859,0.00024825,2]
[383887067,1757156817157,-195.0,0.0002485,2]
[383887068,1757156817179,-161.81299918,0.000249,2]
[383887069,1757156817203,-158.26001207,0.000249,2]
[383887070,1757156839409,-340.20349562,0.000249,2]
[383887071,1757156843090,-144.26438592,0.000249,2]
[383887072,1757156843111,-1183.35303075,0.000249,2]
[383887073,1757156843131,-195.0,0.00025049,2]
[383887074,1757156843152,-300.0,0.00025089,2]
[383887075,1757156843173,-195.0,0.00025278,2]
[383887076,1757156843193,-159.12551718,0.00025995,2]
[383887077,1757156843214,-300.0,0.0002602,2]
[383887078,1757156843235,-300.0,0.0002602,2]
[383887079,1757156843256,-161.81299918,0.00026646,2]
[383887080,1757156843277,-195.0,0.0002728,2]
[383887081,1757156843298,-300.0,0.0002728,2]
[383887082,1757156843319,-250.0,0.0002728,2]
[383887083,1757156843340,-1200.0,0.00027388,2]
[383887084,1757156843366,-300.0,0.00027388,2]
[383887085,1757156843389,-1200.0,0.00027388,2]
[383887086,1757156843410,-300.0,0.00027389,2]
[383887087,1757156843431,-161.81299918,0.00027389,2]
[383887088,1757156843451,-195.0,0.0002739,2]
[383887089,1757156843472,-300.0,0.0002739,2]
[383887090,1757156843494,-250.0,0.0002739,2]
[383887091,1757156843514,-209.03668,0.00027802,2]
[383887092,1757156843538,-642.72789332,0.00027827,8]
[383887093,1757156843559,-8221.65799646,0.0002945,2]
[383887094,1757156846539,-591.67651537,0.0002945,2]
[383887095,1757156846563,-1061.49119454,0.0002945,2]
[383887096,1757156846589,-426.0,0.00029598,2]
[383887097,1757156846615,-232.0,0.00029599,2]
[383887098,1757156846640,-1028.00009783,0.00029728,2]
[383887099,1757156881852,300.0,0.00029864,120]
[383887100,1757156947902,-152.44,0.00021282,2]
[383887101,1757156947927,-152.44,0.00022402,2]
[383887102,1757156947953,-152.44,0.00023522,2]
[383887103,1757156947979,-152.44,0.00024642,2]
[383887104,1757156948007,-619.75288226,0.000249,2]
[383887105,1757156948034,-152.44,0.00025762,2]
[383887106,1757156948059,-152.44,0.00026882,2]
[383887107,1757156948084,-619.75288205,0.00027827,8]
[383887108,1757156948109,-152.44,0.00028002,2]
[383887109,1757156948136,-152.44,0.00029122,2]
[383887110,1757156948159,-171.99990217,0.00029728,2]
[383887111,1757156948187,-295.83825769,0.00029728,2]
[383887112,1757156948209,-161.0,0.0003,7]
[383887113,1757156948232,-152.44,0.00030242,2]
[383887114,1757156948256,-619.75288205,0.00030754,14]
[383887115,1757156948283,-152.44,0.00031362,2]
[383887116,1757156948306,-152.44,0.00032483,2]
[383887117,1757156948329,-300.0,0.00032701,120]
[383887118,1757156948353,-300.0,0.00032701,120]
[383887119,1757156948376,-166.29,0.00032732,2]
[383887120,1757156948399,-500.0,0.00033582,2]
[383887121,1757156948423,-152.44,0.00033603,2]
[383887122,1757156948447,-619.75288205,0.00033682,21]
[383887123,1757156948471,-152.44,0.00034723,2]
[383887124,1757156948495,-158.126981,0.00035616,10]
[383887125,1757156948518,-152.44,0.00035843,2]
[383887126,1757156948542,-619.75288205,0.00036609,27]
[383887127,1757156948564,-500.0,0.00036771,7]
[383887128,1757156948588,-152.44,0.00036963,2]
[383887129,1757156948610,-200.16049668,0.00037268,7]
[383887130,1757156956082,-295.83825768,0.00036963,2]
[383887131,1757156956104,-299.83950332,0.00037268,7]
[383887132,1757156956125,-500.0,0.00037695,7]
[383887133,1757156956146,-500.0,0.00038056,7]
[383887134,1757156956168,-152.44,0.00038083,2]
[383887135,1757156956193,-500.0,0.00038482,7]
[383887136,1757156956215,-300.0,0.00038677,5]
[383887137,1757156956235,-410.667,0.00038678,52]
[383887138,1757156956256,-150.99,0.00038678,2]
[383887139,1757156956291,-999.99,0.00038678,2]
[383887140,1757156956314,-2714.75177839,0.00038678,2]
[383887141,1757156967787,500.0,0.00029628,2]
[383887143,1757157031972,-155.0,0.00038436,2]
[383887144,1757157031984,-155.0,0.00038436,2]
[383887145,1757157031996,-1509.61601428,0.00038436,2]
[383887146,1757157032009,-164.09383145,0.00038726,2]
[383887147,1757157032020,-320.0,0.00038899,5]
[383887148,1757157032031,-8544.22728215,0.000389,2]
[383887149,1757157032048,-520.82613864,0.000389,2]
[383887151,1757157032064,-21418.43393816,0.000389,2]
[383887152,1757157032076,-1584.86930158,0.000389,2]
[383887153,1757157032123,-1272.5,0.000389,2]
[383887165,1757157037898,-1334.17623947,0.000389,2]
[383887166,1757157037908,-1000.0,0.000389,2]
[383887167,1757157037918,-168.0,0.00038926,7]
[383887168,1757157037931,-280.0,0.00038928,30]
[383887169,1757157037940,-168.0,0.00038941,2]
[383887170,1757157037953,-500.0,0.00039095,7]